fUSD/lending_fUSD_20241109
["ID","MTS","AMOUNT","RATE_DAILY","PERIOD"]
[341746174,1731186631712,-1000.0,0.00014925,2]
[341746175,1731186631722,-1000.0,0.00014925,2]
[341746176,1731186631731,-1000.0,0.00014925,2]
[341746177,1731186631740,-1000.0,0.00014925,2]
[341746178,1731186631750,-1000.0,0.00014925,2]
[341746179,1731186631759,-1000.0,0.00014925,2]
[341746180,1731186631768,-1000.0,0.00014925,2]
[341746181,1731186631777,-1000.0,0.00014925,2]
[341746182,1731186631787,-1000.0,0.00014925,2]
[341746183,1731186631797,-1000.0,0.00014925,2]
[341746184,1731186631807,-1000.0,0.00014925,2]
[341746185,1731186631816,-1000.0,0.00014925,2]
[341746186,1731186631825,-1000.0,0.00014925,2]
[341746187,1731186631834,-1000.0,0.00014925,2]
[341746188,1731186631844,-1000.0,0.00014925,2]
[341746189,1731186631853,-1000.0,0.00014925,2]
[341746190,1731186631863,-1000.0,0.00014925,2]
[341746191,1731186631872,-1000.0,0.00014925,2]
[341746192,1731186631884,-1000.0,0.00014925,2]
[341746193,1731186631899,-1000.0,0.00014925,2]
[341746194,1731186631908,-1000.0,0.00014925,2]
[341746195,1731186631917,-1000.0,0.00014925,2]
[341746196,1731186631927,-1000.0,0.00014925,2]
[341746197,1731186631936,-1000.0,0.00014925,2]
[341746198,1731186631945,-1000.0,0.00014925,2]
[341746199,1731186631954,-1000.0,0.00014925,2]
[341746200,1731186631963,-1000.0,0.00014925,2]
[341746201,1731186631973,-1000.0,0.00014925,2]
[341746202,1731186631983,-1000.0,0.00014925,2]
[341746203,1731186631994,-539.7112,0.00014925,2]
[341746204,1731186632004,-977.80372754,0.0001499,2]
[341746206,1731186632013,-977.80372754,0.0001499,2]
[341746208,1731186632023,-977.80372754,0.0001499,2]
[341746210,1731186632032,-2837.17115738,0.00014999,2]
[341746211,1731186632041,-2416.16107697,0.00014999,2]
[341746213,1731186632051,-54515.54231321,0.00015,2]
[341746215,1731186632064,-4057.61514411,0.00015,2]
[341746216,1731186632076,-314.49158686,0.00015,2]
[341746217,1731186632104,-603.03497768,0.00015,2]
[341746218,1731186632125,-131132.47424549,0.00015,2]
[341746219,1731186632300,-58612.58053832,0.00015,2]
[341746220,1731186632336,-3684.64521271,0.00015,2]
[341746221,1731186632350,-10552.6900996,0.00015,2]
[341746222,1731186632364,-412.64621076,0.00015,2]
[341746223,1731186632377,-1383.74212666,0.00015,2]
[341746224,1731186632389,-670.21068993,0.00015,2]
[341746225,1731186632401,-578.0878976,0.00015,2]
[341746226,1731186632444,-353.16943662,0.00015,2]
[341746227,1731186632458,-1507.74738775,0.00015,2]
[341746228,1731186636990,-6000000.0,0.00040504,30]
[341746327,1731186638765,-333.65017433,0.000149,2]
[341746426,1731186639618,-423.52125652,0.000149,2]
[341746428,1731186639630,-315.6,0.000149,2]
[341746440,1731186639732,-1944.55994,0.000149,2]
[341746519,1731186641316,150.0,0.00016,4]
[341746525,1731186642557,-1109.29859965,0.000149,2]
[341746526,1731186642567,-5567.48089567,0.00015,2]
[341746536,1731186644529,-500.0,0.00014973,2]
[341746537,1731186644538,-218127.69532401,0.00015,2]
[341746538,1731186644640,-3992.19326507,0.00015,2]
[341746539,1731186644652,-11985.73949989,0.00015,2]
[341746540,1731186644714,-22852.8580001,0.00015,2]
[341746543,1731186645914,-763.208316,0.000149,2]
[341746552,1731186646035,-3550.853984,0.000149,2]
[341746554,1731186646045,-995162.44030779,0.00015,2]
[341746556,1731186646055,-1031.2335,0.00015,2]
[341746558,1731186646067,-60806.3124745,0.00015,2]
[341746586,1731186647599,-6000000.0,0.00040504,30]
[341746587,1731186652827,620.0,0.00016,4]
[341746588,1731186689637,162.355,0.0002045,30]
[341746589,1731186690102,162.768,0.0002127,60]
[341746590,1731186726867,200.0,0.00027,60]
[341746591,1731186747487,-39504.299707,0.000236,30]
[341746592,1731186747512,-391.28,0.00024877,30]
[341746593,1731186747538,-500.0,0.00027102,120]
[341746594,1731186747562,-150.0,0.00027397,30]
[341746595,1731186747589,-391.28,0.00027461,30]
[341746596,1731186747613,-189.31675289,0.00027534,30]
[341746597,1731186747637,-200.0,0.00027602,120]
[341746598,1731186747675,-339.88524832,0.00028499,120]
[341746599,1731186747699,-300.0,0.00028499,120]
[341746600,1731186747722,-300.0,0.00028499,120]
[341746601,1731186747755,-300.0,0.00028999,120]
[341746602,1731186747780,-1800.0,0.00029,30]
[341746603,1731186747805,-300.0,0.00029095,120]
[341746604,1731186747829,-300.0,0.00029095,120]
[341746605,1731186747853,-300.0,0.00029099,120]
[341746606,1731186747876,-300.0,0.00029099,120]
[341746607,1731186747905,-545.425572,0.00029202,120]
[341746608,1731186747930,-500.0,0.00029202,120]
[341746609,1731186747953,-500.0,0.00029202,120]
[341746610,1731186747976,-200.0,0.00029202,120]
[341746611,1731186748000,-314.29135415,0.00029255,120]
[341746612,1731186748025,-1800.0,0.0003,31]
[341746613,1731186748050,-391.28,0.00030045,30]
[341746614,1731186748151,-500.0,0.00030136,30]
[341746615,1731186748174,-266.52372968,0.00030136,30]
[341746616,1731186749278,-999.0,0.00030136,120]
[341746617,1731186749560,-1800.0,0.00031,32]
[341746618,1731186749586,-150.0,0.00031264,120]
[341746619,1731186749611,-999.0,0.00031506,120]
[341746620,1731186749635,-150.0,0.00031518,120]
[341746621,1731186749660,-150.0,0.0003171,120]
[341746622,1731186749683,-150.0,0.00031761,120]
[341746623,1731186749706,-150.0,0.00031763,120]
[341746624,1731186749729,-150.0,0.00031959,120]
[341746625,1731186749754,-150.0,0.00031977,120]
[341746626,1731186749780,-500.0,0.00032,30]
[341746627,1731186749804,-500.0,0.00032,30]
[341746628,1731186749828,-518.42975228,0.00032,30]
[341746629,1731186749851,-500.0,0.00032,30]
[341746630,1731186749875,-509.88500474,0.00032,30]
[341746631,1731186749902,-500.0,0.00032,30]
[341746632,1731186749928,-500.0,0.00032,30]
[341746633,1731186749952,-500.0,0.00032,30]
[341746634,1731186749977,-500.0,0.00032,30]
[341746635,1731186750002,-500.0,0.00032,30]
[341746636,1731186750027,-813.31226498,0.00032,30]
[341746637,1731186750053,-500.0,0.00032,30]
[341746638,1731186750076,-500.0,0.00032,30]
[341746639,1731186750099,-500.0,0.00032,30]
[341746640,1731186750122,-574.54754009,0.00032,30]
[341746641,1731186750151,-520.26532333,0.00032,30]
[341746642,1731186750176,-500.0,0.00032,30]
[341746643,1731186750202,-529.71184614,0.00032,30]
[341746644,1731186750226,-514.57201388,0.00032,30]
[341746645,1731186750250,-500.0,0.00032,30]
[341746646,1731186750275,-500.0,0.00032,30]
[341746647,1731186750301,-500.0,0.00032,30]
[341746648,1731186750327,-500.0,0.00032,30]
[341746649,1731186750352,-500.0,0.00032,30]
[341746650,1731186750376,-500.0,0.00032,30]
[341746651,1731186750401,-500.0,0.00032,30]
[341746652,1731186750426,-500.0,0.00032,30]
[341746653,1731186750451,-500.0,0.00032,30]
[341746654,1731186750478,-500.0,0.00032,30]
[341746655,1731186750502,-500.0,0.00032,30]
[341746656,1731186750528,-500.0,0.00032,30]
[341746657,1731186750553,-500.0,0.00032,30]
[341746658,1731186750579,-500.0,0.00032,30]
[341746659,1731186750604,-500.0,0.00032,30]
[341746660,1731186750628,-500.0,0.00032,30]
[341746661,1731186750652,-500.0,0.00032,30]
[341746662,1731186750676,-832.89207162,0.00032,30]
[341746663,1731186750701,-500.0,0.00032,30]
[341746664,1731186750726,-500.0,0.00032,30]
[341746665,1731186750751,-500.0,0.00032,30]
[341746666,1731186750775,-500.0,0.00032,30]
[341746667,1731186750800,-717.1595602,0.00032,30]
[341746668,1731186750824,-500.0,0.00032,30]
[341746669,1731186750848,-254044.04263799,0.00032,30]
[341746670,1731186750872,-1800.0,0.00032,33]
[341746671,1731186750897,-250.0,0.00032,60]
[341746672,1731186750925,-6398.42532935,0.00032,30]
[341746673,1731186750949,-500.0,0.00032,120]
[341746674,1731186750975,-150.0,0.00032055,120]
[341746675,1731186751000,-150.0,0.00032067,120]
[341746676,1731186751025,-150.0,0.00032214,120]
[341746677,1731186751051,-150.0,0.00032372,120]
[341746678,1731186751077,-162.356,0.0003255,120]
[341746679,1731186751102,-391.28,0.00032629,120]
[341746680,1731186751497,-150.0,0.00032695,120]
[341746681,1731186751522,-150.0,0.00032839,120]
[341746682,1731186751545,-150.0,0.00032839,120]
[341746683,1731186751570,-1000.0,0.00032876,30]
[341746684,1731186751593,-1000.0,0.00032876,30]
[341746685,1731186751616,-1000.0,0.00032876,30]
[341746686,1731186751638,-1000.0,0.00032876,30]
[341746687,1731186751661,-1000.0,0.00032876,30]
[341746688,1731186751684,-1000.0,0.00032876,30]
[341746689,1731186751706,-1000.0,0.00032876,30]
[341746690,1731186751729,-1000.0,0.00032876,30]
[341746691,1731186751752,-1000.0,0.00032876,30]
[341746692,1731186751775,-1000.0,0.00032876,30]
[341746693,1731186751797,-1000.0,0.00032876,30]
[341746694,1731186751820,-1000.0,0.00032876,30]
[341746695,1731186751843,-1000.0,0.00032876,30]
[341746696,1731186751866,-1000.0,0.00032876,30]
[341746697,1731186751889,-1000.0,0.00032876,30]
[341746698,1731186751911,-1000.0,0.00032876,30]
[341746699,1731186751938,-1000.0,0.00032876,30]
[341746700,1731186751960,-1000.0,0.00032876,30]
[341746701,1731186751985,-1000.0,0.00032876,30]
[341746702,1731186752015,-1025.71009583,0.00032876,30]
[341746703,1731186752040,-999.0,0.00032876,120]
[341746704,1731186752063,-1800.0,0.00033,34]
[341746705,1731186752088,-150.0,0.00033035,120]
[341746706,1731186752112,-150.0,0.00033072,120]
[341746707,1731186752135,-151.0,0.00033151,120]
[341746708,1731186752159,-713.04,0.00033151,120]
[341746709,1731186752183,-150.0,0.00033332,120]
[341746710,1731186752208,-778.79,0.000335,31]
[341746711,1731186752234,-778.79,0.000335,31]
[341746712,1731186752261,-778.79,0.000335,31]
[341746713,1731186752285,-778.79,0.000335,31]
[341746714,1731186752310,-778.79,0.000335,31]
[341746715,1731186752335,-778.79,0.000335,31]
[341746716,1731186752361,-778.79,0.000335,31]
[341746717,1731186752385,-778.79,0.000335,31]
[341746718,1731186752410,-778.79,0.000335,31]
[341746719,1731186752435,-778.79,0.000335,31]
[341746720,1731186752460,-778.79,0.000335,31]
[341746721,1731186752484,-778.79,0.000335,31]
[341746722,1731186752510,-778.79,0.000335,31]
[341746723,1731186752535,-778.79,0.000335,31]
[341746724,1731186752560,-778.79,0.000335,31]
[341746725,1731186752586,-778.79,0.000335,31]
[341746726,1731186752610,-778.79,0.000335,31]
[341746727,1731186752635,-778.79,0.000335,31]
[341746728,1731186752659,-778.79,0.000335,31]
[341746729,1731186752684,-778.79,0.000335,31]
[341746730,1731186752709,-778.79,0.000335,31]
[341746731,1731186752735,-778.79,0.000335,31]
[341746732,1731186752760,-778.79,0.000335,31]
[341746733,1731186752785,-778.79,0.000335,31]
[341746734,1731186752812,-778.79,0.000335,31]
[341746735,1731186752837,-778.79,0.000335,31]
[341746736,1731186752862,-778.79,0.000335,31]
[341746737,1731186752888,-778.79,0.000335,31]
[341746738,1731186752914,-778.79,0.000335,31]
[341746739,1731186752941,-778.79,0.000335,31]
[341746740,1731186752967,-778.79,0.000335,31]
[341746741,1731186752993,-778.79,0.000335,31]
[341746742,1731186753020,-778.79,0.000335,31]
[341746743,1731186753046,-778.79,0.000335,31]
[341746744,1731186753071,-778.79,0.000335,31]
[341746745,1731186753098,-778.79,0.000335,31]
[341746746,1731186753123,-150.0,0.00033587,120]
[341746747,1731186753148,-778.79,0.000336,31]
[341746748,1731186753174,-778.79,0.000336,31]
[341746749,1731186753201,-778.79,0.000336,31]
[341746750,1731186753227,-778.79,0.000336,31]
[341746751,1731186753260,-778.79,0.000336,31]
[341746752,1731186753288,-778.79,0.000336,31]
[341746753,1731186753316,-778.79,0.000336,31]
[341746754,1731186753344,-778.79,0.000336,31]
[341746755,1731186753371,-778.79,0.000336,31]
[341746756,1731186753398,-778.79,0.000336,31]
[341746757,1731186753426,-778.79,0.000336,31]
[341746758,1731186753453,-778.79,0.000336,31]
[341746759,1731186753479,-778.79,0.000336,31]
[341746760,1731186753509,-778.79,0.000336,31]
[341746761,1731186753536,-778.79,0.000336,31]
[341746762,1731186753563,-778.79,0.000336,31]
[341746763,1731186753590,-778.79,0.000336,31]
[341746764,1731186753616,-778.79,0.000336,31]
[341746765,1731186753642,-778.79,0.000336,31]
[341746766,1731186753668,-778.79,0.000336,31]
[341746767,1731186753694,-778.79,0.000336,31]
[341746768,1731186753721,-778.79,0.000336,31]
[341746769,1731186753750,-778.79,0.000336,31]
[341746770,1731186753778,-778.79,0.000336,31]
[341746771,1731186753804,-778.79,0.000336,31]
[341746772,1731186753830,-778.79,0.000336,31]
[341746773,1731186753855,-778.79,0.000336,31]
[341746774,1731186753880,-778.79,0.000336,31]
[341746775,1731186753906,-778.79,0.000336,31]
[341746776,1731186753932,-778.79,0.000336,31]
[341746777,1731186753957,-778.79,0.000336,31]
[341746778,1731186753982,-778.79,0.000336,31]
[341746779,1731186754008,-778.79,0.000336,31]
[341746780,1731186754034,-778.79,0.000336,31]
[341746781,1731186754059,-778.79,0.000336,31]
[341746782,1731186754084,-778.79,0.000336,31]
[341746783,1731186754108,-778.79,0.000336,31]
[341746784,1731186754344,-778.79,0.000336,31]
[341746785,1731186754372,-778.79,0.000336,31]
[341746786,1731186754400,-778.79,0.000336,31]
[341746787,1731186754425,-778.79,0.000336,31]
[341746788,1731186754451,-778.79,0.000336,31]
[341746789,1731186754478,-778.79,0.000336,31]
[341746790,1731186754504,-778.79,0.000336,31]
[341746791,1731186754530,-778.79,0.000336,31]
[341746792,1731186754556,-778.79,0.000336,31]
[341746793,1731186754583,-778.79,0.000336,31]
[341746794,1731186754610,-778.79,0.000336,31]
[341746795,1731186754635,-778.79,0.000336,31]
[341746796,1731186754660,-778.79,0.000336,31]
[341746797,1731186754686,-778.79,0.000336,31]
[341746798,1731186754710,-778.79,0.000336,31]
[341746799,1731186754734,-778.79,0.000336,31]
[341746800,1731186754758,-778.79,0.000336,31]
[341746801,1731186754784,-778.79,0.000336,31]
[341746802,1731186754810,-778.79,0.000336,31]
[341746803,1731186754837,-778.79,0.000336,31]
[341746804,1731186754864,-778.79,0.000336,31]
[341746805,1731186754892,-778.79,0.000336,31]
[341746806,1731186754920,-778.79,0.000336,31]
[341746807,1731186754948,-778.79,0.000336,31]
[341746808,1731186754978,-778.79,0.000336,31]
[341746809,1731186755005,-778.79,0.000336,31]
[341746810,1731186755032,-778.79,0.000336,31]
[341746811,1731186755056,-150.0,0.00033722,120]
[341746812,1731186755080,-2000.0,0.00033841,120]
[341746813,1731186755107,-1800.0,0.00034,35]
[341746814,1731186755132,-501.74572609,0.00034,30]
[341746815,1731186755156,-500.0,0.00034,30]
[341746816,1731186755180,-500.0,0.00034,30]
[341746817,1731186755206,-500.0,0.00034,30]
[341746818,1731186755231,-500.0,0.00034,30]
[341746819,1731186755253,-500.0,0.00034,30]
[341746820,1731186755282,-500.0,0.00034,30]
[341746821,1731186755307,-500.0,0.00034,30]
[341746822,1731186755331,-500.0,0.00034,30]
[341746823,1731186755357,-500.0,0.00034,30]
[341746824,1731186755382,-500.0,0.00034,30]
[341746825,1731186755405,-500.0,0.00034,30]
[341746826,1731186755428,-303.19606204,0.00034,30]
[341746827,1731186755450,-500.0,0.00034,30]
[341746828,1731186755472,-500.0,0.00034,30]
[341746829,1731186755495,-500.0,0.00034,30]
[341746830,1731186755517,-500.0,0.00034,30]
[341746831,1731186755539,-518.3186673,0.00034,30]
[341746832,1731186755562,-500.0,0.00034,30]
[341746833,1731186755584,-500.0,0.00034,30]
[341746834,1731186755606,-500.0,0.00034,30]
[341746835,1731186755629,-197.58042464,0.00034,30]
[341746836,1731186755651,-519.78758137,0.00034,30]
[341746837,1731186755674,-207.69055709,0.00034,30]
[341746838,1731186755697,-500.0,0.00034,30]
[341746839,1731186755721,-500.0,0.00034,30]
[341746840,1731186755747,-512.43764117,0.00034,30]
[341746841,1731186755773,-500.0,0.00034,30]
[341746842,1731186755796,-772.46319794,0.00034,30]
[341746843,1731186755820,-635.62172542,0.00034,30]
[341746844,1731186755845,-500.0,0.00034,30]
[341746845,1731186755869,-514.53604802,0.00034,30]
[341746846,1731186755893,-500.0,0.00034,30]
[341746847,1731186755918,-500.0,0.00034,30]
[341746848,1731186755945,-500.0,0.00034,30]
[341746849,1731186755969,-158.36021549,0.00034,30]
[341746850,1731186755996,-500.0,0.00034,30]
[341746851,1731186756022,-500.0,0.00034,30]
[341746852,1731186756046,-500.0,0.00034,30]
[341746853,1731186756070,-500.0,0.00034,30]
[341746854,1731186756093,-500.0,0.00034,30]
[341746855,1731186756116,-500.0,0.00034,30]
[341746856,1731186756139,-500.0,0.00034,30]
[341746857,1731186756162,-500.0,0.00034,30]
[341746858,1731186756184,-500.0,0.00034,30]
[341746859,1731186756208,-500.0,0.00034,30]
[341746860,1731186756230,-500.0,0.00034,30]
[341746861,1731186756254,-500.0,0.00034,30]
[341746862,1731186756276,-500.0,0.00034,30]
[341746863,1731186756299,-500.0,0.00034,30]
[341746864,1731186756322,-500.0,0.00034,30]
[341746865,1731186756344,-521.75210176,0.00034,30]
[341746866,1731186756367,-500.0,0.00034,30]
[341746867,1731186756389,-500.0,0.00034,30]
[341746868,1731186756412,-500.0,0.00034,30]
[341746869,1731186756435,-500.0,0.00034,30]
[341746870,1731186756458,-500.0,0.00034,30]
[341746871,1731186756481,-500.0,0.00034,30]
[341746872,1731186756505,-500.0,0.00034,30]
[341746873,1731186756530,-500.0,0.00034,30]
[341746874,1731186756554,-500.0,0.00034,30]
[341746875,1731186756576,-500.0,0.00034,30]
[341746876,1731186756600,-500.0,0.00034,30]
[341746877,1731186756622,-384.027799,0.00034,30]
[341746878,1731186756645,-150.0,0.0003402,120]
[341746879,1731186756669,-150.0,0.00034129,120]
[341746880,1731186756694,-999.0,0.00034246,120]
[341746881,1731186756717,-150.0,0.00034311,120]
[341746882,1731186756743,-150.0,0.00034363,120]
[341746883,1731186756766,-155.0,0.000344,120]
[341746884,1731186756791,-150.0,0.00034988,120]
[341746885,1731186756815,-1912.31467281,0.00035,100]
[341746886,1731186756838,-2312.19779621,0.00035,90]
[341746887,1731186757066,-250.0,0.00035,60]
[341746888,1731186757089,-250.0,0.00035,60]
[341746889,1731186757113,-1800.0,0.00035,36]
[341746890,1731186757136,-2000.0,0.00035,30]
[341746891,1731186757159,-2000.0,0.00035182,120]
[341746892,1731186757182,-391.28,0.00035213,120]
[341746893,1731186757204,-150.0,0.00035262,120]
[341746894,1731186757227,-150.0,0.00035322,120]
[341746895,1731186757249,-500.0,0.0003541,60]
[341746896,1731186757273,-999.0,0.00035616,120]
[341746897,1731186757299,-150.0,0.00035678,120]
[341746898,1731186757322,-150.0,0.00035834,120]
[341746899,1731186757345,-1800.0,0.00036,37]
[341746900,1731186757368,-250.0,0.00036,30]
[341746901,1731186757390,-150.0,0.00036012,120]
[341746902,1731186757414,-150.0,0.00036056,120]
[341746903,1731186757437,-150.0,0.00036133,120]
[341746904,1731186757460,-151.0,0.00036301,120]
[341746905,1731186757484,-150.0,0.00036365,120]
[341746906,1731186757509,-155.0,0.000364,120]
[341746907,1731186757531,-500.0,0.00036506,60]
[341746908,1731186757554,-500.0,0.00036506,60]
[341746909,1731186757577,-500.0,0.00036506,60]
[341746910,1731186757600,-500.0,0.00036506,60]
[341746911,1731186757622,-2000.0,0.00036524,120]
[341746912,1731186757644,-150.0,0.00036726,120]
[341746913,1731186757668,-1023.95,0.00036986,89]
[341746914,1731186757690,-1023.95,0.00036986,89]
[341746915,1731186757712,-1023.95,0.00036986,89]
[341746916,1731186757733,-1023.95,0.00036986,89]
[341746917,1731186757756,-1023.95,0.00036986,89]
[341746918,1731186757779,-1023.95,0.00036986,89]
[341746919,1731186757801,-1023.95,0.00036986,89]
[341746920,1731186757824,-1023.95,0.00036986,89]
[341746921,1731186757846,-1023.95,0.00036986,89]
[341746922,1731186757868,-1023.95,0.00036986,89]
[341746923,1731186757892,-1023.95,0.00036986,89]
[341746924,1731186757915,-1023.95,0.00036986,89]
[341746925,1731186757940,-1023.95,0.00036986,89]
[341746926,1731186757963,-1023.95,0.00036986,89]
[341746927,1731186757985,-1023.95,0.00036986,89]
[341746928,1731186758010,-1023.95,0.00036986,89]
[341746929,1731186758033,-1023.95,0.00036986,89]
[341746930,1731186758055,-1023.95,0.00036986,89]
[341746931,1731186758078,-1023.95,0.00036986,89]
[341746932,1731186758100,-1023.95,0.00036986,89]
[341746933,1731186758122,-1023.95,0.00036986,89]
[341746934,1731186758145,-1023.95,0.00036986,89]
[341746935,1731186758168,-1023.95,0.00036986,89]
[341746936,1731186758190,-1024.17906107,0.00036986,89]
[341746937,1731186758214,-999.0,0.00036986,120]
[341746938,1731186758239,-1800.0,0.00037,38]
[341746939,1731186758264,-205.94484163,0.00037,30]
[341746940,1731186758288,-500.0,0.00037,120]
[341746941,1731186758314,-150.0,0.00037143,120]
[341746942,1731186758338,-192.12152224,0.000372,103]
[341746943,1731186758360,-192.1215222,0.000372,103]
[341746944,1731186758384,-192.1215222,0.000372,103]
[341746945,1731186758407,-192.1215222,0.000372,103]
[341746946,1731186758430,-192.1215222,0.000372,103]
[341746947,1731186758454,-150.0,0.00037238,120]
[341746948,1731186758478,-500.0,0.00037602,60]
[341746949,1731186758505,-500.0,0.00037602,60]
[341746950,1731186758528,-500.0,0.00037602,60]
[341746951,1731186758551,-503.94315126,0.00037602,60]
[341746952,1731186758576,-209.0,0.0003765,30]
[341746953,1731186758599,-500.0,0.000377,30]
[341746954,1731186758624,-150.0,0.00037712,120]
[341746955,1731186758648,-150.0,0.00037785,120]
[341746956,1731186758672,-391.28,0.00037797,120]
[341746957,1731186758695,-1420.24,0.000378,30]
[341746958,1731186758718,-2000.0,0.00037866,120]
[341746959,1731186758742,-150.0,0.00037867,120]
[341746960,1731186758767,-1800.0,0.00038,39]
[341746961,1731186758791,-5000.0,0.00038,30]
[341746962,1731186758815,-200.0,0.00038,120]
[341746963,1731186758839,-850.0,0.00038,120]
[341746964,1731186758863,-1440.80684718,0.00038,120]
[341746965,1731186758887,-2231.91466286,0.00038,120]
[341746966,1731186758911,-250.0,0.00038,30]
[341746967,1731186758940,-150.0,0.00038244,120]
[341746968,1731186758966,-999.0,0.00038356,120]
[341746969,1731186758992,-150.5,0.0003839,120]
[341746970,1731186759019,-2488.32652242,0.000384,33]
[341746971,1731186759043,-8937.01516029,0.000384,33]
[341746972,1731186759066,-375.10862185,0.000384,33]
[341746973,1731186759089,-14650.95753886,0.000384,33]
[341746974,1731186759112,-41099.61881754,0.000384,33]
[341746975,1731186759134,-24059.80325288,0.000384,33]
[341746976,1731186759157,-500.0,0.00038437,30]
[341746977,1731186759180,-500.0,0.00038437,30]
[341746978,1731186759204,-500.0,0.00038437,30]
[341746979,1731186759227,-500.0,0.00038437,30]
[341746980,1731186759250,-500.0,0.00038437,30]
[341746981,1731186759273,-500.0,0.00038437,30]
[341746982,1731186759298,-500.0,0.00038437,30]
[341746983,1731186759322,-500.0,0.00038437,30]
[341746984,1731186759346,-500.0,0.00038437,30]
[341746985,1731186759370,-500.0,0.00038437,30]
[341746986,1731186759395,-500.0,0.00038437,30]
[341746987,1731186759421,-500.0,0.00038437,30]
[341746988,1731186759446,-500.0,0.00038437,30]
[341746989,1731186759471,-500.0,0.00038437,30]
[341746990,1731186759783,-500.0,0.00038437,30]
[341746991,1731186759808,-500.0,0.00038437,30]
[341746992,1731186759831,-500.0,0.00038437,30]
[341746993,1731186759854,-500.0,0.00038437,30]
[341746994,1731186759877,-500.0,0.00038437,30]
[341746995,1731186759901,-500.0,0.00038437,30]
[341746996,1731186759924,-500.0,0.00038437,30]
[341746997,1731186759950,-500.0,0.00038437,30]
[341746998,1731186759975,-500.0,0.00038437,30]
[341746999,1731186759999,-500.0,0.00038437,30]
[341747000,1731186760024,-500.0,0.00038437,30]
[341747001,1731186760048,-500.0,0.00038437,30]
[341747002,1731186760072,-500.0,0.00038437,30]
[341747003,1731186760096,-500.0,0.00038437,30]
[341747004,1731186760119,-500.0,0.00038437,30]
[341747005,1731186760143,-500.0,0.00038437,30]
[341747006,1731186760166,-246.61446426,0.00038437,30]
[341747007,1731186760194,-579.34,0.00038683,52]
[341747008,1731186760218,-150.0,0.00038696,120]
[341747009,1731186760243,-500.0,0.00038698,60]
[341747010,1731186760266,-200.0,0.00038698,60]
[341747011,1731186760289,-500.0,0.00038698,60]
[341747012,1731186760320,-209.0,0.0003873,30]
[341747013,1731186760344,-1420.24,0.000388,30]
[341747014,1731186760367,-16795.76534016,0.000388,30]
[341747015,1731186760391,-150.0,0.00038822,120]
[341747016,1731186760416,-150.0,0.00038825,120]
[341747017,1731186760440,-3201.32862131,0.0003888,90]
[341747018,1731186760462,-420.0,0.0003897,30]